[Event "FIDE Candidates Tournament 2022"]
[Site "Madrid"]
[Date "2022.06.27"]
[Round "9.4"]
[White "Ding, Liren"]
[Black "Duda, Jan-Krzysztof"]
[Result "1-0"]
[ECO "A13"]
[WhiteElo "2806"]
[BlackElo "2750"]
[Annotator "TA"]
[PlyCount "121"]
[EventDate "2022.06.17"]
[EventType "tourn"]
[EventCountry "ESP"]
[SourceTitle "playchess.com"]
[Source "ChessBase"]
[SourceQuality "1"]
[TimeControl "40/7200:20/3600:900+30"]

{[%evp 14,121,33,30,32,34,30,31,26,28,31,24,22,27,21,27,14,13,12,13,10,12,24,25,34,16,44,16,26,22,22,4,20,0,0,0,0,11,7,0,0,9,8,0,10,0,0,0,0,0,0,0,0,0,16,0,0,0,8,8,31,33,23,39,75,89,65,51,235,212,207,225,221,223,252,234,239,230,382,382,382,404,404,375,350,326,479,432,513,438,497,468,512,468,480,395,475,413,403,386,581,449,1644,1464,2031,1787,973,1557,1285,1144]} 1. c4 {[%emt 0:00:02]} Nf6 {[%emt 0:00:06]} 2. g3 {[%emt 0:00:03]} e6 {[%emt 0:00:08]} 3. Bg2 {[%emt 0:00:04]} d5 {[%emt 0:00:06]} 4. Nf3 {[%emt 0:00:03]} dxc4 {[%emt 0:00:06]} 5. Qa4+ {[%emt 0:00:05]} Nbd7 {[%emt 0:00:06]} 6. Qxc4 {[%emt 0:00:19]} a6 {[%emt 0:00:05]} 7. Qc2 {[%emt 0:00:33]} c5 {[%emt 0:00:07]} 8. Nc3 {[%emt 0:00:15]} Qc7 {[%emt 0:00:25] A13: English Opening: 1...e6.} 9. O-O {[%emt 0:00:07][%cal Bh1f1,Bf1d1,Bd1d4][%mdl 32]} b6 {[%emt 0:00:35]} 10. d4 {[%emt 0:00:04]} Bb7 {[%emt 0:00:05] White is slightly better.} 11. dxc5 {[%emt 0:00:16]} Bxc5 {[%emt 0:04:14]} 12. Bf4 {[%emt 0:00:29]} Bd6 {[%emt 0:09:37]} 13. Bxd6 {[%emt 0:00:58]} Qxd6 {[%emt 0:00:05]} 14. Rfd1 {[%emt 0:00:03]} Qc7 {[%emt 0:02:57] [#]} 15. Rd4 $5 $146 {[%emt 0:00:41][%mdl 8] New and interesting.} ({Predecessor:} 15. Rac1 Rc8 16. Qb1 Qb8 17. Ng5 Bxg2 18. Kxg2 Qb7+ 19. f3 O-O 20. Nce4 Rxc1 21. Rxc1 {½-½ (47) Aronian,L (2797)-Wojtaszek,R (2744) Wijk aan Zee 2015}) 15... O-O {[%emt 0:04:48]} 16. Rad1 {[%emt 0:00:29]} Rac8 {[%emt 0:05:28]} 17. Qd2 {[%emt 0:00:46][%cal Rd4d7]} Nc5 {[%emt 0:10:16]} (17... Bc6 {feels hotter.} 18. Ng5 Bxg2 19. Kxg2 Nc5) 18. Qf4 {[%emt 0:00:23] Against e5} Qxf4 {[%emt 0:19:22]} 19. gxf4 {[%emt 0:00:21]} Nce4 {[%emt 0:02:15]} 20. Nxe4 {[%emt 0:04:32]} (20. Na4 $5 {[%cal Ra4b6]}) 20... Bxe4 {[%emt 0:00:24]} 21. Ne5 {[%emt 0:00:11]} Bd5 {[%emt 0:00:50]} 22. a4 {[%emt 0:21:29]} a5 {[%emt 0:12:59]} 23. e4 {[%emt 0:03:48]} Bb3 {[%emt 0:00:45]} 24. R1d3 {[%emt 0:16:40]} Rc1+ {[%emt 0:00:49]} 25. Bf1 {[%emt 0:01:11]} Bc2 {[%emt 0:00:10]} 26. Rc3 {[%emt 0:06:25]} Rd1 {[%emt 0:05:21]} 27. Rxd1 {[%emt 0:07:34]} Bxd1 {[%emt 0:00:19]} 28. Rc4 {[%emt 0:00:03]} Rd8 {[%emt 0:03:55]} 29. Nc6 {[%emt 0:03:12]} Rd2 {[%emt 0:14:54]} 30. Nxa5 {[%emt 0:00:28] White wants to mate with Rc8+.} g6 $1 {[%emt 0:00:05]} 31. Rc8+ {[%emt 0:00:25]} Kg7 {[%emt 0:00:05]} 32. Nc4 {[%emt 0:00:06][%csl LRb6,LRd2]} Rc2 {[%emt 0:06:05]} 33. b4 {[%emt 0:10:36]} Rc1 {[%emt 0:03:02]} 34. Nxb6 {[%emt 0:13:45]} Rb1 {[%emt 0:00:08]} (34... Rxc8 35. Nxc8 Bxa4 36. f3 $16) 35. Kg2 {[%emt 0:00:04]} ({Much worse is} 35. e5 Nh5 36. Nc4 Nxf4 $17) 35... Rxb4 {[%emt 0:02:19]} 36. a5 {[%emt 0:00:57][%cal Oa5a6] Threatens to win with a6!} Rb3 {[%emt 0:01:45]} 37. Rc1 {[%emt 0:09:14]} Bf3+ {[%emt 0:00:11]} 38. Kg1 {[%emt 0:00:03]} Ra3 {[%emt 0:03:42]} 39. Nc4 {[%emt 0:01:44]} Ra2 {[%emt 0:00:01]} 40. Ne5 {[%emt 0:00:00]} Bxe4 {[%emt 0:00:00] This costs Black the game.} (40... Bh5 $1 $14) 41. Rc7 $18 {[%emt 0:08:21]} Nd5 {[%emt 0:04:32]} 42. Rxf7+ {[%emt 0:00:17]} Kg8 {[%emt 0:00:06]} 43. a6 {[%emt 0:01:49][%cal Ba5a6,Ba6a7][%mdl 32] Hoping for a7.} Nb4 {[%emt 0:04:40]} 44. Ra7 {[%emt 0:10:05]} Nc6 {[%emt 0:01:42]} 45. Rc7 {[%emt 0:07:06]} Nd4 {[%emt 0:01:53]} (45... Nxe5 46. fxe5 Ra1) 46. f3 {[%emt 0:08:07]} Nxf3+ {[%emt 0:08:12]} 47. Nxf3 {[%emt 0:00:04]} Bxf3 {[%emt 0:00:06][%mdl 4096] Endgame KRB-KRB} 48. a7 {[%emt 0:04:10]} Bd5 {[%emt 0:00:57]} 49. h4 {[%emt 0:02:08]} Ra4 {[%emt 0:03:52]} (49... h6 $142 50. Bd3 h5) 50. Bb5 {[%emt 0:01:46]} ({Less strong is} 50. Bg2 Ra1+ 51. Bf1 Ra2 $18) 50... Ra5 {[%emt 0:00:32] [#]} 51. Rd7 $1 {[%emt 0:03:12]} Ra2 {[%emt 0:03:16]} 52. Kf1 {[%emt 0:00:26]} Bg2+ {[%emt 0:03:08] [#]} 53. Ke1 $1 {[%emt 0:00:09]} Bd5 {[%emt 0:00:10]} 54. Kd1 {[%emt 0:02:28]} Kh8 {[%emt 0:00:05]} 55. Kc1 {[%emt 0:00:58]} Be4 {[%emt 0:13:24]} 56. Rc7 {[%emt 0:00:12]} Ra5 {[%emt 0:01:23]} (56... Bd5 $142 57. Kb1 Ra5) 57. Bd7 {[%emt 0:02:50] White is clearly winning.} Ra1+ {[%emt 0:08:38]} (57... Bd5 $142 58. Kb2 Kg8) 58. Kb2 {[%emt 0:01:11]} Rb1+ {[%emt 0:00:06]} 59. Ka2 {[%emt 0:00:10] Intending Bc6 and mate.} Rb6 {[%emt 0:00:24] Prevents Bc6.} 60. Ka3 {[%emt 0:00:00]} Kg8 {[%emt 0:00:00]} 61. Ka4 {[%emt 0:01:56] Weighted Error Value: White=0.09 (flawless) /Black=0.26 (precise)} 1-0

[Event "FIDE Candidates Tournament 2022"]
[Site "Madrid"]
[Date "2022.07.01"]
[Round "12.2"]
[White "Ding, Liren"]
[Black "Radjabov, Teimour"]
[Result "0-1"]
[ECO "E48"]
[WhiteElo "2806"]
[BlackElo "2753"]
[Annotator "TA"]
[PlyCount "52"]
[EventDate "2022.06.17"]
[EventType "tourn"]
[EventCountry "ESP"]
[SourceTitle "playchess.com"]
[Source "ChessBase"]
[SourceQuality "1"]
[TimeControl "40/7200:20/3600:900+30"]

{[%evp 11,52,0,0,-10,-20,-7,0,0,-3,-4,0,0,0,0,0,0,0,-14,0,-2,0,-48,-30,-20,-27,-59,-58,-160,-97,-105,-106,-443,-456,-450,-449,-566,-423,-803,-754,-904,-869,-1272,-1237]} 1. d4 {[%emt 0:00:04]} Nf6 {[%emt 0:00:03]} 2. c4 {[%emt 0:00:05]} e6 {[%emt 0:00:05]} 3. Nc3 {[%emt 0:00:11]} Bb4 {[%emt 0:00:05]} 4. e3 {[%emt 0:00:05]} O-O {[%emt 0:00:06]} 5. Bd3 {[%emt 0:00:04]} d5 {[%emt 0:00:07]} 6. cxd5 {[%emt 0:00:05]} exd5 {[%emt 0:00:12]} 7. a3 {[%emt 0:00:04] E48: Nimzo-Indian: Rubinstein: 5 Bd3 d5 including 6 Ne2, but excluding 6 a3.} Bd6 {[%emt 0:00:19]} 8. Qc2 {[%emt 0:00:05]} Na6 $5 {[%emt 0:00:08][%mdl 4] Exploring less charted territory.} 9. Nge2 {[%emt 0:07:36] The position is equal.} c5 {[%emt 0:00:35]} 10. Bxa6 {[%emt 0:00:43][%cal Od4c5]} bxa6 {[%emt 0:00:28]} 11. dxc5 {[%emt 0:00:07]} Bxc5 {[%emt 0:00:04] [#]} 12. b4 $146 {[%emt 0:03:24]} ({Predecessor:} 12. O-O Bd6 13. b3 Re8 14. Nd4 a5 15. Ncb5 Ba6 16. Nxd6 Qxd6 17. Rd1 Rac8 18. Qf5 Ne4 19. a4 g6 20. Qf3 Qe5 21. Bb2 Rc5 {½-½ (21) Vecek,M (2164)-Popov,V (2276) ICCF email 2010}) 12... Bd6 {[%emt 0:01:59]} 13. Bb2 {[%emt 0:00:16]} a5 {[%emt 0:04:44]} 14. b5 {[%emt 0:05:38]} a6 {[%emt 0:02:17]} 15. h3 {[%emt 0:14:18]} Bd7 {[%emt 0:04:12]} 16. bxa6 {[%emt 0:08:17]} (16. a4 $11) 16... Rxa6 $15 {[%emt 0:04:24]} 17. Rd1 {[%emt 0:02:22]} Rb6 {[%emt 0:15:50]} 18. Rd2 {[%emt 0:10:49]} (18. Nxd5 Nxd5 19. Rxd5 Qb8 20. Bxg7 (20. Rh5 $2 g6 $19) 20... Kxg7 $17) 18... Qc8 {[%emt 0:08:13]} 19. f3 {[%emt 0:14:21]} ({But not} 19. Nxd5 Nxd5 20. Qxc8 Rxc8 $17) (19. Ba1 $15) 19... Re8 {[%emt 0:08:02]} (19... Qb8 $142 20. O-O Rc8) 20. Kf2 {[%emt 0:00:21]} Qb8 {[%emt 0:08:02][%cal Oe8e3] aiming for ...Rxe3! Black is more active.} ({And not} 20... Qc5 21. Nd1 $15) 21. Qc1 $2 {[%emt 0:06:07][%mdl 8192] [#] White does not recover from this.} (21. Bc1 $17 {is tougher.}) 21... Rxe3 $3 $19 {[%emt 0:06:39][%mdl 512] ...Bc5 is the strong threat. Black is clearly winning.} 22. Nd1 {[%emt 0:17:16]} ({Much weaker is} 22. Kxe3 Bc5+ 23. Nd4 Qe5+ 24. Kf2 Bxd4+ 25. Rxd4 Qxd4+ 26. Kg3 Nh5+ 27. Kh2 Qe5+ 28. f4 Nxf4) 22... Re8 {[%emt 0:06:07]} 23. Ne3 {[%emt 0:02:29]} Rb3 {[%emt 0:07:37]} 24. Ng4 {[%emt 0:00:35]} (24. Bd4 $142) 24... Bxg4 {[%emt 0:08:11]} 25. hxg4 {[%emt 0:00:19]} Rc8 {[%emt 0:01:21]} 26. Qa1 {[%emt 0:01:30]} Bf4 {[%emt 0:04:33] Weighted Error Value: White=0.87/Black=0.15 (very precise)} 0-1

[Event "FIDE Candidates Tournament 2022"]
[Site "Madrid"]
[Date "2022.07.04"]
[Round "14.3"]
[White "Ding, Liren"]
[Black "Nakamura, Hikaru"]
[Result "1-0"]
[ECO "D40"]
[WhiteElo "2806"]
[BlackElo "2760"]
[Annotator "TA"]
[PlyCount "115"]
[EventDate "2022.06.17"]
[EventType "tourn"]
[EventCountry "ESP"]
[SourceTitle "playchess.com"]
[Source "ChessBase"]
[SourceQuality "1"]
[TimeControl "40/7200:20/3600:900+30"]

{[%evp 12,115,0,0,4,0,19,20,25,19,18,23,20,16,29,0,0,0,18,-5,-5,-3,0,0,0,-1,-1,-3,14,0,12,17,17,18,11,16,26,32,45,19,38,0,0,0,0,0,0,0,0,0,0,0,0,0,0,0,0,0,22,0,100,112,112,110,102,41,117,74,115,118,108,114,184,190,191,192,205,202,189,175,304,299,304,261,416,380,427,419,416,390,491,449,472,470,469,454,435,0,470,457,443,401,606,588,572,556]} 1. d4 {[%emt 0:00:02]} Nf6 {[%emt 0:00:05]} 2. c4 {[%emt 0:00:03]} e6 {[%emt 0:00:05]} 3. Nf3 {[%emt 0:00:06]} d5 {[%emt 0:00:05]} 4. Nc3 {[%emt 0:00:02]} c5 {[%emt 0:00:05]} 5. e3 {[%emt 0:00:39]} Nc6 {[%emt 0:00:14]} 6. a3 {[%emt 0:00:17]} dxc4 {[%emt 0:00:10]} 7. Bxc4 {[%emt 0:00:06]} a6 {[%emt 0:00:03] D40: Queen's Gambit Declined: Semi-Tarrasch with 5 e3.} 8. Bd3 {[%emt 0:00:15]} b5 {[%emt 0:02:09]} 9. dxc5 {[%emt 0:00:39]} Bxc5 {[%emt 0:00:06] The position is equal.} 10. b4 {[%emt 0:00:49]} Be7 {[%emt 0:03:44]} 11. O-O {[%emt 0:00:55]} Bb7 {[%emt 0:00:58]} 12. Bb2 {[%emt 0:00:08]} O-O {[%emt 0:02:52]} 13. Ne4 $5 {[%emt 0:10:22][%mdl 4] Exploring less charted territory.} Nxe4 {[%emt 0:05:22]} 14. Bxe4 {[%emt 0:00:14]} f5 {[%emt 0:00:02] [#]} 15. Bb1 $146 {[%emt 0:27:52]} ({Predecessor:} 15. Bc2 Bf6 16. Bxf6 Qxf6 17. Bb3 Rfd8 18. Qc2 Kh8 19. Rfd1 e5 20. Qb2 {½-½ (42) Nozdrachev,L (2411)-Sidorov,A (2293) Samara 2016}) 15... Qxd1 {[%emt 0:05:57]} 16. Rxd1 {[%emt 0:00:15]} Rfd8 {[%emt 0:00:14]} 17. Ba2 {[%emt 0:11:51]} Kf7 {[%emt 0:00:27]} 18. h4 {[%emt 0:02:10]} h6 {[%emt 0:00:20]} 19. Rdc1 $132 {[%emt 0:08:39][%cal Oc1c6][%mdl 2048] Threatens to win with Rxc6! White is fighting back} Bd6 {[%emt 0:18:05]} 20. Rc2 {[%emt 0:01:52]} Ne7 {[%emt 0:01:45]} 21. Nd4 {[%emt 0:07:35]} Bd5 {[%emt 0:00:22]} 22. Bxd5 {[%emt 0:00:08]} Nxd5 {[%emt 0:00:05]} 23. Rac1 {[%emt 0:01:29]} Rd7 {[%emt 0:06:53]} 24. Nb3 {[%emt 0:00:19]} Be7 {[%emt 0:07:33]} 25. h5 {[%emt 0:01:20]} Bf6 {[%emt 0:00:57]} 26. Bd4 {[%emt 0:01:40]} e5 {[%emt 0:12:04]} 27. Bc5 {[%emt 0:05:30]} Bd8 {[%emt 0:01:48]} 28. Rd2 {[%emt 0:01:14] And now Rcd1 would win.} Nf6 {[%emt 0:00:22]} 29. Rxd7+ {[%emt 0:01:14]} Nxd7 {[%emt 0:00:18]} 30. Rd1 {[%emt 0:05:44]} Nf6 {[%emt 0:04:04]} 31. Bd6 {[%emt 0:00:04]} Ng4 {[%emt 0:00:25]} 32. Bc5 {[%emt 0:03:09]} Bh4 {[%emt 0:07:08]} 33. Rd7+ {[%emt 0:00:15]} Kg8 {[%emt 0:00:25]} 34. g3 {[%emt 0:00:29]} Bg5 {[%emt 0:01:44]} 35. Kf1 {[%emt 0:01:09]} Bd8 {[%emt 0:06:18]} (35... Rd8 $1 $11 36. Rxd8+ Bxd8) 36. Rb7 $16 {[%emt 0:02:43]} f4 {[%emt 0:01:05]} 37. gxf4 {[%emt 0:06:04]} exf4 {[%emt 0:00:02]} 38. e4 {[%emt 0:00:04]} (38. exf4 $16 Nf6 39. Kg2) 38... Bf6 {[%emt 0:00:55]} (38... f3 $1 $14) 39. Nd4 {[%emt 0:06:14]} Re8 {[%emt 0:03:21]} 40. Kg2 {[%emt 0:00:00]} Ne5 {[%emt 0:00:00] [#]} 41. Nf5 $1 {[%emt 0:07:04] White is more active.} f3+ {[%emt 0:05:02]} (41... Nc4 $16) 42. Kg3 $18 {[%emt 0:01:11]} Nc4 {[%emt 0:00:14] [#]} 43. Be7 $1 {[%emt 0:10:17] Bxf6 is the strong threat.} ({Don't play} 43. Kxf3 $6 Nd2+ 44. Kg4 Nxe4 $16) 43... Bb2 {[%emt 0:05:59]} ({Less strong is} 43... Bxe7 44. Nxe7+ Kf8 45. Ng6+ Kg8 46. Kf4 $16 (46. Kxf3 Kh7 $16)) 44. Kxf3 {[%emt 0:01:19]} Bxa3 {[%emt 0:00:39]} 45. Kg3 {[%emt 0:02:27]} Ne5 {[%emt 0:18:04]} (45... a5 $142) 46. Bc5 {[%emt 0:06:16]} Nf7 {[%emt 0:00:21]} 47. f3 {[%emt 0:01:02]} Bc1 {[%emt 0:08:00]} (47... a5 $142 48. Rxb5 Bxb4 49. Bxb4 axb4 50. Rxb4 Ng5) 48. Ra7 {[%emt 0:02:08]} Bd2 {[%emt 0:00:46]} 49. Rxa6 {[%emt 0:02:42]} Be1+ {[%emt 0:00:44]} 50. Kg2 {[%emt 0:01:09]} Bc3 {[%emt 0:00:06]} 51. Ra7 {[%emt 0:00:59]} Ng5 {[%emt 0:00:21]} 52. Ne7+ {[%emt 0:01:29]} Kh8 {[%emt 0:00:59]} 53. Ng6+ {[%emt 0:00:06]} Kg8 {[%emt 0:01:03]} 54. Ne7+ {[%emt 0:03:23]} Kh8 $1 {[%emt 0:00:10]} 55. Nd5 {[%emt 0:00:38]} Bb2 {[%emt 0:01:42]} 56. Ra2 {[%emt 0:01:57]} Bc1 {[%emt 0:00:48]} (56... Bf6 $142 57. Ra5 Rb8) 57. Rc2 {[%emt 0:00:28]} Ba3 {[%emt 0:00:05]} 58. Be3 {[%emt 0:00:37] Weighted Error Value: White=0.16 (very precise) /Black=0.23 (precise)} 1-0